[Event "Live Chess"]
[Site "Chess.com"]
[Date "2010.12.14"]
[Round "-"]
[White "hipposcottimus"]
[Black "realproto"]
[Result "1-0"]
[CurrentPosition "7k/p1p5/2pp4/8/6r1/2P1bPB1/PP4RP/7K b - -"]
[Timezone "UTC"]
[ECO "B00"]
[ECOUrl "https://www.chess.com/openings/Nimzowitsch-Defense-2.d4-e6"]
[UTCDate "2010.12.14"]
[UTCTime "08:55:02"]
[WhiteElo "1633"]
[BlackElo "1622"]
[TimeControl "60"]
[Termination "hipposcottimus won on time"]
[StartTime "08:55:02"]
[EndDate "2010.12.14"]
[EndTime "08:57:10"]
[Link "https://www.chess.com/game/live/77149256"]

1. e4 {[%clk 0:01:00]} 1... Nc6 {[%clk 0:01:00]} 2. d4 {[%clk 0:00:58.4]} 2... e6 {[%clk 0:01:00]} 3. e5 {[%clk 0:00:57.3]} 3... Bb4+ {[%clk 0:00:57.9]} 4. c3 {[%clk 0:00:55.4]} 4... Ba5 {[%clk 0:00:57.4]} 5. Nf3 {[%clk 0:00:54.9]} 5... Nge7 {[%clk 0:00:56]} 6. Bb5 {[%clk 0:00:54.3]} 6... O-O {[%clk 0:00:54.1]} 7. O-O {[%clk 0:00:50.3]} 7... d6 {[%clk 0:00:52.4]} 8. Bf4 {[%clk 0:00:47]} 8... f5 {[%clk 0:00:50.4]} 9. exf6 {[%clk 0:00:45]} 9... gxf6 {[%clk 0:00:48.9]} 10. Bh6 {[%clk 0:00:43.1]} 10... Rf7 {[%clk 0:00:47.2]} 11. Nh4 {[%clk 0:00:40.9]} 11... Ng6 {[%clk 0:00:44.8]} 12. Qg4 {[%clk 0:00:39.6]} 12... e5 {[%clk 0:00:42.8]} 13. Nxg6 {[%clk 0:00:38.2]} 13... Bxg4 {[%clk 0:00:41.1]} 14. Bxc6 {[%clk 0:00:33.8]} 14... bxc6 {[%clk 0:00:38.4]} 15. f3 {[%clk 0:00:31.8]} 15... hxg6 {[%clk 0:00:36.7]} 16. fxg4 {[%clk 0:00:30.2]} 16... f5 {[%clk 0:00:35.6]} 17. gxf5 {[%clk 0:00:28.5]} 17... Rxf5 {[%clk 0:00:34.5]} 18. Nd2 {[%clk 0:00:28.1]} 18... Qh4 {[%clk 0:00:31.9]} 19. Rxf5 {[%clk 0:00:26.2]} 19... gxf5 {[%clk 0:00:30.2]} 20. Be3 {[%clk 0:00:19.7]} 20... f4 {[%clk 0:00:29]} 21. Bf2 {[%clk 0:00:18.8]} 21... Qg4 {[%clk 0:00:24.8]} 22. Rf1 {[%clk 0:00:18.5]} 22... exd4 {[%clk 0:00:18.6]} 23. Ne4 {[%clk 0:00:17.9]} 23... f3 {[%clk 0:00:16.9]} 24. Nf6+ {[%clk 0:00:16.9]} 24... Kh8 {[%clk 0:00:14.1]} 25. Nxg4 {[%clk 0:00:16.6]} 25... Rg8 {[%clk 0:00:11.8]} 26. Bg3 {[%clk 0:00:12.4]} 26... d3 {[%clk 0:00:11.8]} 27. gxf3 {[%clk 0:00:11.2]} 27... Bb6+ {[%clk 0:00:10.4]} 28. Kh1 {[%clk 0:00:09.7]} 28... d2 {[%clk 0:00:08.1]} 29. Rd1 {[%clk 0:00:09.4]} 29... Rxg4 {[%clk 0:00:05]} 30. Rxd2 {[%clk 0:00:06.3]} 30... Be3 {[%clk 0:00:02.1]} 31. Rg2 {[%clk 0:00:05.8]} 1-0

[Event "Live Chess"]
[Site "Chess.com"]
[Date "2010.12.14"]
[Round "-"]
[White "realproto"]
[Black "hipposcottimus"]
[Result "1-0"]
[CurrentPosition "4nrk1/R3Q1pp/8/8/8/2P3PP/5PB1/6K1 b - -"]
[Timezone "UTC"]
[ECO "A00"]
[ECOUrl "https://www.chess.com/openings/Saragossa-Opening-Hanham-Variation-Hayward-Variation"]
[UTCDate "2010.12.14"]
[UTCTime "08:52:40"]
[WhiteElo "1630"]
[BlackElo "1625"]
[TimeControl "60"]
[Termination "realproto won on time"]
[StartTime "08:52:40"]
[EndDate "2010.12.14"]
[EndTime "08:54:41"]
[Link "https://www.chess.com/game/live/77148819"]

1. c3 {[%clk 0:01:00]} 1... e5 {[%clk 0:01:00]} 2. Qc2 {[%clk 0:01:00]} 2... d5 {[%clk 0:00:59.2]} 3. Nf3 {[%clk 0:00:59.5]} 3... e4 {[%clk 0:00:58.6]} 4. Nd4 {[%clk 0:00:58.3]} 4... c5 {[%clk 0:00:56.4]} 5. Nb3 {[%clk 0:00:55.5]} 5... Nf6 {[%clk 0:00:56]} 6. e3 {[%clk 0:00:54.2]} 6... c4 {[%clk 0:00:52.1]} 7. Nd4 {[%clk 0:00:52.7]} 7... Be7 {[%clk 0:00:48.6]} 8. Be2 {[%clk 0:00:52.7]} 8... O-O {[%clk 0:00:47.3]} 9. O-O {[%clk 0:00:52.7]} 9... Nc6 {[%clk 0:00:46.4]} 10. b3 {[%clk 0:00:51.6]} 10... Nxd4 {[%clk 0:00:45.2]} 11. exd4 {[%clk 0:00:50.4]} 11... Qc7 {[%clk 0:00:44]} 12. bxc4 {[%clk 0:00:48.9]} 12... Bd6 {[%clk 0:00:43.3]} 13. g3 {[%clk 0:00:46.4]} 13... dxc4 {[%clk 0:00:42.2]} 14. Na3 {[%clk 0:00:44.2]} 14... Be6 {[%clk 0:00:39.3]} 15. Nb5 {[%clk 0:00:41.2]} 15... Qc6 {[%clk 0:00:30.1]} 16. Nxd6 {[%clk 0:00:39.4]} 16... Qxd6 {[%clk 0:00:29.8]} 17. a4 {[%clk 0:00:38.5]} 17... a6 {[%clk 0:00:27.3]} 18. Ba3 {[%clk 0:00:37.4]} 18... Rac8 {[%clk 0:00:27]} 19. Bxd6 {[%clk 0:00:36.2]} 19... Bh3 {[%clk 0:00:24.4]} 20. Bxf8 {[%clk 0:00:34.4]} 20... Bxf1 {[%clk 0:00:24.1]} 21. Bxf1 {[%clk 0:00:32.2]} 21... Rxf8 {[%clk 0:00:23.7]} 22. Bg2 {[%clk 0:00:30.7]} 22... e3 {[%clk 0:00:23.3]} 23. dxe3 {[%clk 0:00:28.9]} 23... Ng4 {[%clk 0:00:22.9]} 24. e4 {[%clk 0:00:28.7]} 24... Re8 {[%clk 0:00:20.5]} 25. e5 {[%clk 0:00:28]} 25... f6 {[%clk 0:00:19.2]} 26. Qa2 {[%clk 0:00:27.1]} 26... b5 {[%clk 0:00:15.4]} 27. axb5 {[%clk 0:00:25.6]} 27... axb5 {[%clk 0:00:14.7]} 28. Qa6 {[%clk 0:00:24.1]} 28... fxe5 {[%clk 0:00:13.7]} 29. Qxb5 {[%clk 0:00:23.1]} 29... exd4 {[%clk 0:00:12.7]} 30. Qxc4+ {[%clk 0:00:21.2]} 30... Kh8 {[%clk 0:00:11]} 31. h3 {[%clk 0:00:20.4]} 31... Nf6 {[%clk 0:00:09.4]} 32. Qxd4 {[%clk 0:00:19.3]} 32... Rf8 {[%clk 0:00:08.9]} 33. Ra7 {[%clk 0:00:16.9]} 33... Ne8 {[%clk 0:00:07.1]} 34. Qd7 {[%clk 0:00:14.7]} 34... Kg8 {[%clk 0:00:04.4]} 35. Qe7 {[%clk 0:00:12.4]} 1-0

[Event "Live Chess"]
[Site "Chess.com"]
[Date "2010.12.14"]
[Round "-"]
[White "hipposcottimus"]
[Black "realproto"]
[Result "0-1"]
[CurrentPosition "4rrk1/ppp2pb1/6Np/8/2P4B/4n2R/PP4qP/R6K w - -"]
[Timezone "UTC"]
[ECO "B06"]
[ECOUrl "https://www.chess.com/openings/Modern-Defense-with-1-e4-2.Nf3"]
[UTCDate "2010.12.14"]
[UTCTime "08:50:37"]
[WhiteElo "1633"]
[BlackElo "1622"]
[TimeControl "60"]
[Termination "realproto won by checkmate"]
[StartTime "08:50:37"]
[EndDate "2010.12.14"]
[EndTime "08:52:20"]
[Link "https://www.chess.com/game/live/77148486"]

1. e4 {[%clk 0:01:00]} 1... g6 {[%clk 0:01:00]} 2. Nf3 {[%clk 0:00:59.6]} 2... Bg7 {[%clk 0:00:59.7]} 3. e5 {[%clk 0:00:59.4]} 3... e6 {[%clk 0:00:59.7]} 4. d4 {[%clk 0:00:59.1]} 4... Ne7 {[%clk 0:00:59.7]} 5. c4 {[%clk 0:00:58.7]} 5... O-O {[%clk 0:00:59.7]} 6. Nc3 {[%clk 0:00:58.4]} 6... d6 {[%clk 0:00:59.2]} 7. Be2 {[%clk 0:00:58.1]} 7... dxe5 {[%clk 0:00:58]} 8. dxe5 {[%clk 0:00:57.9]} 8... Qe8 {[%clk 0:00:57.4]} 9. O-O {[%clk 0:00:56.1]} 9... Nd7 {[%clk 0:00:56.3]} 10. Nd4 {[%clk 0:00:54.8]} 10... Nxe5 {[%clk 0:00:54.8]} 11. f4 {[%clk 0:00:53.6]} 11... N5c6 {[%clk 0:00:49.8]} 12. Nf3 {[%clk 0:00:53.2]} 12... Bd7 {[%clk 0:00:47.6]} 13. Ng5 {[%clk 0:00:52.8]} 13... Rd8 {[%clk 0:00:46.2]} 14. Bd3 {[%clk 0:00:51.5]} 14... Bc8 {[%clk 0:00:45.3]} 15. Qf3 {[%clk 0:00:48.8]} 15... Nd4 {[%clk 0:00:42.1]} 16. Qh3 {[%clk 0:00:47.5]} 16... h6 {[%clk 0:00:40.2]} 17. Nf3 {[%clk 0:00:45.7]} 17... Nxf3+ {[%clk 0:00:38.2]} 18. Rxf3 {[%clk 0:00:44]} 18... Qd7 {[%clk 0:00:34.1]} 19. Bd2 {[%clk 0:00:41.4]} 19... Nf5 {[%clk 0:00:32.9]} 20. Be1 {[%clk 0:00:29.2]} 20... e5 {[%clk 0:00:31.1]} 21. Bh4 {[%clk 0:00:28]} 21... Rde8 {[%clk 0:00:26.9]} 22. Be4 {[%clk 0:00:26.5]} 22... Qd4+ {[%clk 0:00:23.5]} 23. Kh1 {[%clk 0:00:24.2]} 23... exf4 {[%clk 0:00:22.5]} 24. Nd5 {[%clk 0:00:21.5]} 24... Ne3 {[%clk 0:00:20.8]} 25. Nxf4 {[%clk 0:00:20.5]} 25... Bxh3 {[%clk 0:00:17.8]} 26. Rxh3 {[%clk 0:00:17.7]} 26... Qxe4 {[%clk 0:00:16.9]} 27. Nxg6 {[%clk 0:00:15.9]} 27... Qxg2# {[%clk 0:00:15.2]} 0-1

[Event "Live Chess"]
[Site "Chess.com"]
[Date "2010.12.14"]
[Round "-"]
[White "realproto"]
[Black "hipposcottimus"]
[Result "1-0"]
[CurrentPosition "5rk1/p2Q2pp/1p2P1b1/3P2N1/8/4n3/PP4PK/R7 b - -"]
[Timezone "UTC"]
[ECO "A04"]
[ECOUrl "https://www.chess.com/openings/Reti-Opening-Ross-Gambit"]
[UTCDate "2010.12.14"]
[UTCTime "08:48:24"]
[WhiteElo "1613"]
[BlackElo "1642"]
[TimeControl "60"]
[Termination "realproto won on time"]
[StartTime "08:48:24"]
[EndDate "2010.12.14"]
[EndTime "08:50:23"]
[Link "https://www.chess.com/game/live/77148064"]

1. Nf3 {[%clk 0:01:00]} 1... e5 {[%clk 0:01:00]} 2. e3 {[%clk 0:01:00]} 2... e4 {[%clk 0:00:58.7]} 3. Ne5 {[%clk 0:00:56.2]} 3... d6 {[%clk 0:00:58.4]} 4. Nxf7 {[%clk 0:00:52.4]} 4... Kxf7 {[%clk 0:00:56.6]} 5. Bc4+ {[%clk 0:00:52.4]} 5... d5 {[%clk 0:00:54.9]} 6. Bb3 {[%clk 0:00:51.6]} 6... Nf6 {[%clk 0:00:53.9]} 7. O-O {[%clk 0:00:51.6]} 7... Bd6 {[%clk 0:00:52.7]} 8. f3 {[%clk 0:00:51.6]} 8... Rf8 {[%clk 0:00:50.8]} 9. d3 {[%clk 0:00:49.9]} 9... Kg8 {[%clk 0:00:50.6]} 10. fxe4 {[%clk 0:00:48.6]} 10... Kh8 {[%clk 0:00:45.2]} 11. exd5 {[%clk 0:00:45.3]} 11... Nxd5 {[%clk 0:00:40.8]} 12. Nd2 {[%clk 0:00:45.3]} 12... Nc6 {[%clk 0:00:34.5]} 13. Bxd5 {[%clk 0:00:43.1]} 13... Bxh2+ {[%clk 0:00:33.2]} 14. Kxh2 {[%clk 0:00:41.7]} 14... Qxd5 {[%clk 0:00:32.9]} 15. Rxf8+ {[%clk 0:00:37.4]} 15... Qg8 {[%clk 0:00:30.9]} 16. Rxg8+ {[%clk 0:00:36.7]} 16... Kxg8 {[%clk 0:00:30.7]} 17. Ne4 {[%clk 0:00:35.8]} 17... Bf5 {[%clk 0:00:30.2]} 18. Ng5 {[%clk 0:00:33.6]} 18... Rf8 {[%clk 0:00:29.6]} 19. Qh5 {[%clk 0:00:31]} 19... Bg6 {[%clk 0:00:27.9]} 20. Qh4 {[%clk 0:00:26.7]} 20... Ne7 {[%clk 0:00:27.6]} 21. e4 {[%clk 0:00:25.6]} 21... c6 {[%clk 0:00:24.4]} 22. Be3 {[%clk 0:00:24.1]} 22... b6 {[%clk 0:00:21.8]} 23. d4 {[%clk 0:00:20.9]} 23... Re8 {[%clk 0:00:18]} 24. c4 {[%clk 0:00:20.2]} 24... Rd8 {[%clk 0:00:16.3]} 25. e5 {[%clk 0:00:19.3]} 25... Nf5 {[%clk 0:00:13.4]} 26. Qf4 {[%clk 0:00:17.2]} 26... Rf8 {[%clk 0:00:10]} 27. Qg4 {[%clk 0:00:16]} 27... Nxe3 {[%clk 0:00:08.8]} 28. Qd7 {[%clk 0:00:14.5]} 28... Nf5 {[%clk 0:00:06.6]} 29. d5 {[%clk 0:00:13.6]} 29... cxd5 {[%clk 0:00:04.1]} 30. cxd5 {[%clk 0:00:13.6]} 30... Ne3 {[%clk 0:00:03.7]} 31. e6 {[%clk 0:00:12.9]} 1-0

[Event "Live Chess"]
[Site "Chess.com"]
[Date "2010.12.14"]
[Round "-"]
[White "thelastemperor"]
[Black "hipposcottimus"]
[Result "1-0"]
[CurrentPosition "Q5Q1/5p1p/6pk/8/5KPP/4r3/8/8 b - -"]
[Timezone "UTC"]
[ECO "C20"]
[ECOUrl "https://www.chess.com/openings/Kings-Pawn-Opening-Leonardis-Variation"]
[UTCDate "2010.12.14"]
[UTCTime "08:45:46"]
[WhiteElo "1634"]
[BlackElo "1651"]
[TimeControl "60"]
[Termination "thelastemperor won on time"]
[StartTime "08:45:46"]
[EndDate "2010.12.14"]
[EndTime "08:48:02"]
[Link "https://www.chess.com/game/live/77147619"]

1. e4 {[%clk 0:01:00]} 1... e5 {[%clk 0:01:00]} 2. d3 {[%clk 0:00:59.6]} 2... Nc6 {[%clk 0:00:59.6]} 3. Be2 {[%clk 0:00:58.7]} 3... Nf6 {[%clk 0:00:59.2]} 4. Nf3 {[%clk 0:00:58.5]} 4... d6 {[%clk 0:00:56.5]} 5. O-O {[%clk 0:00:58.1]} 5... Be7 {[%clk 0:00:56]} 6. Bg5 {[%clk 0:00:57.7]} 6... Bg4 {[%clk 0:00:55.4]} 7. Bxf6 {[%clk 0:00:57.3]} 7... Bxf6 {[%clk 0:00:55.1]} 8. h3 {[%clk 0:00:56.8]} 8... Bh5 {[%clk 0:00:53.7]} 9. Nc3 {[%clk 0:00:55]} 9... Bg6 {[%clk 0:00:52.7]} 10. Nd5 {[%clk 0:00:54]} 10... Nd4 {[%clk 0:00:51.4]} 11. Nxf6+ {[%clk 0:00:53.2]} 11... Qxf6 {[%clk 0:00:49]} 12. Nxd4 {[%clk 0:00:52.5]} 12... exd4 {[%clk 0:00:48.8]} 13. Bf3 {[%clk 0:00:51]} 13... O-O {[%clk 0:00:48.1]} 14. c3 {[%clk 0:00:49.4]} 14... d5 {[%clk 0:00:45.7]} 15. exd5 {[%clk 0:00:47.8]} 15... Qd6 {[%clk 0:00:45.4]} 16. cxd4 {[%clk 0:00:46.4]} 16... c6 {[%clk 0:00:45]} 17. dxc6 {[%clk 0:00:44.9]} 17... bxc6 {[%clk 0:00:44.8]} 18. d5 {[%clk 0:00:40.3]} 18... cxd5 {[%clk 0:00:42.4]} 19. Re1 {[%clk 0:00:39.3]} 19... Rab8 {[%clk 0:00:39.2]} 20. d4 {[%clk 0:00:38.6]} 20... Rxb2 {[%clk 0:00:37.9]} 21. a4 {[%clk 0:00:34]} 21... a5 {[%clk 0:00:36.1]} 22. Re2 {[%clk 0:00:31.7]} 22... Rb4 {[%clk 0:00:35.6]} 23. Rc2 {[%clk 0:00:30]} 23... Rfb8 {[%clk 0:00:32]} 24. Rc5 {[%clk 0:00:28.1]} 24... Be4 {[%clk 0:00:28.2]} 25. Bxe4 {[%clk 0:00:26.7]} 25... dxe4 {[%clk 0:00:27.9]} 26. Rb5 {[%clk 0:00:25.6]} 26... R8xb5 {[%clk 0:00:25.1]} 27. axb5 {[%clk 0:00:24.8]} 27... Rxd4 {[%clk 0:00:24.8]} 28. Qe1 {[%clk 0:00:22.6]} 28... Qe5 {[%clk 0:00:19]} 29. Rxa5 {[%clk 0:00:21.4]} 29... Rd3 {[%clk 0:00:13.7]} 30. b6 {[%clk 0:00:20.4]} 30... Qxa5 {[%clk 0:00:12.2]} 31. Qxa5 {[%clk 0:00:18.2]} 31... Rd1+ {[%clk 0:00:10.4]} 32. Kh2 {[%clk 0:00:16.8]} 32... e3 {[%clk 0:00:09.9]} 33. fxe3 {[%clk 0:00:16]} 33... g6 {[%clk 0:00:07.7]} 34. Qa8+ {[%clk 0:00:14.2]} 34... Kg7 {[%clk 0:00:07.4]} 35. b7 {[%clk 0:00:13.2]} 35... Rd7 {[%clk 0:00:06.2]} 36. b8=Q {[%clk 0:00:11.6]} 36... Re7 {[%clk 0:00:05.9]} 37. Qg8+ {[%clk 0:00:10.5]} 37... Kh6 {[%clk 0:00:04]} 38. g4 {[%clk 0:00:08.3]} 38... Rxe3 {[%clk 0:00:02.9]} 39. h4 {[%clk 0:00:07.6]} 39... Re2+ {[%clk 0:00:02.1]} 40. Kh3 {[%clk 0:00:06.4]} 40... Re3+ {[%clk 0:00:01.8]} 41. Kg2 {[%clk 0:00:05.9]} 41... Re2+ {[%clk 0:00:01.1]} 42. Kg3 {[%clk 0:00:05.4]} 42... Re3+ {[%clk 0:00:00.6]} 43. Kf4 {[%clk 0:00:04.8]} 1-0

[Event "Live Chess"]
[Site "Chess.com"]
[Date "2010.12.14"]
[Round "-"]
[White "hipposcottimus"]
[Black "thelastemperor"]
[Result "1-0"]
[CurrentPosition "6k1/1PK2p2/r7/1q6/8/8/8/8 b - -"]
[Timezone "UTC"]
[ECO "C41"]
[ECOUrl "https://www.chess.com/openings/Philidor-Defense-3.d4"]
[UTCDate "2010.12.14"]
[UTCTime "08:43:16"]
[WhiteElo "1660"]
[BlackElo "1625"]
[TimeControl "60"]
[Termination "hipposcottimus won on time"]
[StartTime "08:43:16"]
[EndDate "2010.12.14"]
[EndTime "08:45:34"]
[Link "https://www.chess.com/game/live/77147143"]

1. e4 {[%clk 0:01:00]} 1... e5 {[%clk 0:01:00]} 2. Nf3 {[%clk 0:00:59.6]} 2... d6 {[%clk 0:00:59.7]} 3. d4 {[%clk 0:00:59.3]} 3... Be7 {[%clk 0:00:59.3]} 4. dxe5 {[%clk 0:00:57.7]} 4... dxe5 {[%clk 0:00:58]} 5. Bd2 {[%clk 0:00:54.6]} 5... Nd7 {[%clk 0:00:56.6]} 6. Nc3 {[%clk 0:00:54.3]} 6... Ngf6 {[%clk 0:00:56.2]} 7. Bb5 {[%clk 0:00:53.9]} 7... O-O {[%clk 0:00:55.7]} 8. O-O {[%clk 0:00:51.7]} 8... c6 {[%clk 0:00:54.7]} 9. Ba4 {[%clk 0:00:51.5]} 9... b5 {[%clk 0:00:53.7]} 10. Bb3 {[%clk 0:00:51.3]} 10... b4 {[%clk 0:00:53.2]} 11. Ne2 {[%clk 0:00:48.8]} 11... c5 {[%clk 0:00:52.4]} 12. c3 {[%clk 0:00:48.6]} 12... bxc3 {[%clk 0:00:51.2]} 13. Bxc3 {[%clk 0:00:47.1]} 13... a5 {[%clk 0:00:50.8]} 14. Ba4 {[%clk 0:00:44.5]} 14... Ba6 {[%clk 0:00:49.8]} 15. Nd2 {[%clk 0:00:41.6]} 15... Bxe2 {[%clk 0:00:48.8]} 16. Qxe2 {[%clk 0:00:41.4]} 16... Bd6 {[%clk 0:00:47.1]} 17. f4 {[%clk 0:00:41.1]} 17... exf4 {[%clk 0:00:45.3]} 18. Bxd7 {[%clk 0:00:36.5]} 18... Qxd7 {[%clk 0:00:44.3]} 19. Bxf6 {[%clk 0:00:35.6]} 19... gxf6 {[%clk 0:00:43.2]} 20. Qg4+ {[%clk 0:00:35]} 20... Qxg4 {[%clk 0:00:40.6]} 21. h3 {[%clk 0:00:33.4]} 21... Qg3 {[%clk 0:00:39]} 22. Nf3 {[%clk 0:00:32.9]} 22... Rfe8 {[%clk 0:00:35.2]} 23. Rad1 {[%clk 0:00:32.1]} 23... Rxe4 {[%clk 0:00:33.9]} 24. Rxd6 {[%clk 0:00:31.2]} 24... Rae8 {[%clk 0:00:30.2]} 25. Rxf6 {[%clk 0:00:28.8]} 25... Re2 {[%clk 0:00:28.8]} 26. Nh4 {[%clk 0:00:22.1]} 26... Qxh4 {[%clk 0:00:26.6]} 27. R6xf4 {[%clk 0:00:21.1]} 27... Qg3 {[%clk 0:00:21]} 28. Rg4+ {[%clk 0:00:20.5]} 28... Qxg4 {[%clk 0:00:19.2]} 29. hxg4 {[%clk 0:00:20]} 29... Re1 {[%clk 0:00:17.9]} 30. Kf2 {[%clk 0:00:18.9]} 30... Rxf1+ {[%clk 0:00:16]} 31. Kxf1 {[%clk 0:00:18.6]} 31... Re4 {[%clk 0:00:14.6]} 32. g5 {[%clk 0:00:18.2]} 32... Rg4 {[%clk 0:00:13.9]} 33. b3 {[%clk 0:00:17.9]} 33... Rxg5 {[%clk 0:00:13.3]} 34. Kf2 {[%clk 0:00:17.5]} 34... Rg4 {[%clk 0:00:12.8]} 35. g3 {[%clk 0:00:17.1]} 35... Re4 {[%clk 0:00:11.7]} 36. Kf3 {[%clk 0:00:16.8]} 36... Rd4 {[%clk 0:00:11.1]} 37. Ke3 {[%clk 0:00:16.1]} 37... Rd1 {[%clk 0:00:10.2]} 38. Ke2 {[%clk 0:00:15]} 38... Ra1 {[%clk 0:00:09.5]} 39. Kd3 {[%clk 0:00:13.9]} 39... Rxa2 {[%clk 0:00:08.9]} 40. Kc4 {[%clk 0:00:13.7]} 40... Rg2 {[%clk 0:00:08]} 41. Kxc5 {[%clk 0:00:13.4]} 41... Rxg3 {[%clk 0:00:07.4]} 42. Kb5 {[%clk 0:00:13.1]} 42... h5 {[%clk 0:00:06.9]} 43. Kxa5 {[%clk 0:00:12.7]} 43... h4 {[%clk 0:00:06.6]} 44. Ka4 {[%clk 0:00:12.4]} 44... h3 {[%clk 0:00:06.3]} 45. b4 {[%clk 0:00:11.5]} 45... h2 {[%clk 0:00:05.9]} 46. b5 {[%clk 0:00:11.2]} 46... Rc3 {[%clk 0:00:04.7]} 47. Ka5 {[%clk 0:00:10.9]} 47... h1=Q {[%clk 0:00:03.3]} 48. Ka6 {[%clk 0:00:10.6]} 48... Qb1 {[%clk 0:00:02.9]} 49. b6 {[%clk 0:00:10.3]} 49... Ra3+ {[%clk 0:00:02]} 50. Kb7 {[%clk 0:00:09.5]} 50... Qb5 {[%clk 0:00:00.6]} 51. Kc7 {[%clk 0:00:08.8]} 51... Ra6 {[%clk 0:00:00.1]} 52. b7 {[%clk 0:00:08.2]} 1-0

[Event "Live Chess"]
[Site "Chess.com"]
[Date "2010.12.14"]
[Round "-"]
[White "thelastemperor"]
[Black "hipposcottimus"]
[Result "1-0"]
[CurrentPosition "6k1/2P2pp1/6p1/p3p3/2B1P2b/1P3P1P/1r3P2/4K2R b - -"]
[Timezone "UTC"]
[ECO "C20"]
[ECOUrl "https://www.chess.com/openings/Kings-Pawn-Opening-Leonardis-Variation"]
[UTCDate "2010.12.14"]
[UTCTime "08:40:47"]
[WhiteElo "1633"]
[BlackElo "1652"]
[TimeControl "60"]
[Termination "thelastemperor won on time"]
[StartTime "08:40:47"]
[EndDate "2010.12.14"]
[EndTime "08:42:53"]
[Link "https://www.chess.com/game/live/77146666"]

1. e4 {[%clk 0:01:00]} 1... e5 {[%clk 0:01:00]} 2. d3 {[%clk 0:00:59.7]} 2... Nc6 {[%clk 0:00:59.4]} 3. Be2 {[%clk 0:00:59.4]} 3... Nf6 {[%clk 0:00:58.8]} 4. Nf3 {[%clk 0:00:59.1]} 4... d5 {[%clk 0:00:58.5]} 5. O-O {[%clk 0:00:58.7]} 5... dxe4 {[%clk 0:00:56.9]} 6. dxe4 {[%clk 0:00:56.8]} 6... Bd6 {[%clk 0:00:56.4]} 7. Bd3 {[%clk 0:00:54.5]} 7... O-O {[%clk 0:00:56]} 8. Bg5 {[%clk 0:00:51.4]} 8... Be7 {[%clk 0:00:52.8]} 9. Bxf6 {[%clk 0:00:50.7]} 9... Bxf6 {[%clk 0:00:52.3]} 10. Qd2 {[%clk 0:00:50.3]} 10... Be7 {[%clk 0:00:51.6]} 11. Qe2 {[%clk 0:00:49.8]} 11... Bg4 {[%clk 0:00:49]} 12. Nc3 {[%clk 0:00:48.2]} 12... Bg5 {[%clk 0:00:43.7]} 13. Nd5 {[%clk 0:00:47]} 13... Ne7 {[%clk 0:00:37.6]} 14. Nxe7+ {[%clk 0:00:45.5]} 14... Qxe7 {[%clk 0:00:36.5]} 15. h3 {[%clk 0:00:43.9]} 15... Bh5 {[%clk 0:00:34]} 16. c4 {[%clk 0:00:38.9]} 16... Qf6 {[%clk 0:00:30.3]} 17. Rad1 {[%clk 0:00:37.3]} 17... Bxf3 {[%clk 0:00:29]} 18. Qxf3 {[%clk 0:00:35.1]} 18... Qxf3 {[%clk 0:00:28.1]} 19. gxf3 {[%clk 0:00:34.8]} 19... Bf4 {[%clk 0:00:27.1]} 20. Kg2 {[%clk 0:00:33.8]} 20... Rfe8 {[%clk 0:00:26.7]} 21. Rfe1 {[%clk 0:00:32.5]} 21... Re6 {[%clk 0:00:26.3]} 22. b3 {[%clk 0:00:31.1]} 22... Rg6+ {[%clk 0:00:25.9]} 23. Kf1 {[%clk 0:00:29.4]} 23... Re8 {[%clk 0:00:25.6]} 24. Ke2 {[%clk 0:00:28.6]} 24... Ree6 {[%clk 0:00:24.6]} 25. Rh1 {[%clk 0:00:28.1]} 25... Ra6 {[%clk 0:00:23.5]} 26. a4 {[%clk 0:00:26.2]} 26... c6 {[%clk 0:00:21.5]} 27. c5 {[%clk 0:00:25.2]} 27... b5 {[%clk 0:00:20.1]} 28. axb5 {[%clk 0:00:22]} 28... Ra2+ {[%clk 0:00:18.9]} 29. Ke1 {[%clk 0:00:18.4]} 29... cxb5 {[%clk 0:00:18]} 30. Bxb5 {[%clk 0:00:17.5]} 30... Rb2 {[%clk 0:00:16.4]} 31. Bc4 {[%clk 0:00:16]} 31... a5 {[%clk 0:00:12.2]} 32. Rd6 {[%clk 0:00:13.6]} 32... Bg5 {[%clk 0:00:05.1]} 33. Rxg6 {[%clk 0:00:11.6]} 33... hxg6 {[%clk 0:00:02.8]} 34. c6 {[%clk 0:00:11]} 34... Bh4 {[%clk 0:00:01.9]} 35. c7 {[%clk 0:00:10.3]} 1-0

[Event "Live Chess"]
[Site "Chess.com"]
[Date "2010.12.14"]
[Round "-"]
[White "steiner3"]
[Black "hipposcottimus"]
[Result "1-0"]
[CurrentPosition "5Q1k/p5pp/1p6/8/3P4/5P1P/PP3P2/R4R1K b - -"]
[Timezone "UTC"]
[ECO "D00"]
[ECOUrl "https://www.chess.com/openings/Queens-Pawn-Opening-1...d5-2.e3"]
[UTCDate "2010.12.14"]
[UTCTime "08:38:29"]
[WhiteElo "1567"]
[BlackElo "1661"]
[TimeControl "60"]
[Termination "steiner3 won by checkmate"]
[StartTime "08:38:29"]
[EndDate "2010.12.14"]
[EndTime "08:39:51"]
[Link "https://www.chess.com/game/live/77146232"]

1. d4 {[%clk 0:01:00]} 1... d5 {[%clk 0:01:00]} 2. e3 {[%clk 0:00:59.4]} 2... c6 {[%clk 0:00:59.7]} 3. Be2 {[%clk 0:00:58.6]} 3... e6 {[%clk 0:00:59.4]} 4. Nc3 {[%clk 0:00:58.1]} 4... Nf6 {[%clk 0:00:58.9]} 5. Bd2 {[%clk 0:00:57.8]} 5... Bb4 {[%clk 0:00:58.4]} 6. Nf3 {[%clk 0:00:57.2]} 6... Bxc3 {[%clk 0:00:57.5]} 7. Bxc3 {[%clk 0:00:56.8]} 7... O-O {[%clk 0:00:56.6]} 8. O-O {[%clk 0:00:56.4]} 8... Ne4 {[%clk 0:00:56.1]} 9. Bd2 {[%clk 0:00:54.8]} 9... b6 {[%clk 0:00:55.7]} 10. c3 {[%clk 0:00:54.3]} 10... c5 {[%clk 0:00:54.1]} 11. h3 {[%clk 0:00:53.2]} 11... cxd4 {[%clk 0:00:52.9]} 12. cxd4 {[%clk 0:00:51.5]} 12... Nc6 {[%clk 0:00:52.1]} 13. Bc3 {[%clk 0:00:49.9]} 13... f6 {[%clk 0:00:50.7]} 14. Qc2 {[%clk 0:00:48.4]} 14... Nxc3 {[%clk 0:00:49.3]} 15. Qxc3 {[%clk 0:00:46.7]} 15... Na5 {[%clk 0:00:46.6]} 16. Qc2 {[%clk 0:00:45.1]} 16... Nc4 {[%clk 0:00:43.8]} 17. Bxc4 {[%clk 0:00:42.7]} 17... dxc4 {[%clk 0:00:43.5]} 18. Qxc4 {[%clk 0:00:42.2]} 18... Bb7 {[%clk 0:00:42.8]} 19. Qxe6+ {[%clk 0:00:41]} 19... Kh8 {[%clk 0:00:41.3]} 20. e4 {[%clk 0:00:37.4]} 20... f5 {[%clk 0:00:38.9]} 21. exf5 {[%clk 0:00:34.9]} 21... Bxf3 {[%clk 0:00:34.5]} 22. gxf3 {[%clk 0:00:31.4]} 22... Qg5+ {[%clk 0:00:34.1]} 23. Kh1 {[%clk 0:00:29]} 23... Rxf5 {[%clk 0:00:33.3]} 24. Qe4 {[%clk 0:00:26.7]} 24... Rf4 {[%clk 0:00:31.6]} 25. Qxa8+ {[%clk 0:00:24.8]} 25... Qd8 {[%clk 0:00:28.6]} 26. Qxd8+ {[%clk 0:00:24]} 26... Rf8 {[%clk 0:00:28.1]} 27. Qxf8# {[%clk 0:00:23.4]} 1-0